[Event "Faroese-ch Open 2025"]
[Site "Torshavn"]
[Date "2025.04.16"]
[Round "5.4"]
[White "Rasmussen, Gunnleif"]
[Black "Anthoniussen, Mannbjorn"]
[Result "0-1"]
[Annotator "NA RC"]
[ECO "A45"]
[WhiteElo "1489"]
[BlackElo "1689"]
[PlyCount "58"]
[EventDate "2025.04.11"]
[EventType "swiss"]
[EventCountry "FAI"]
[SourceTitle "playchess.com"]
[Source "ChessBase"]
[SourceQuality "1"]
[TimeControl "40/5400+30:900+30"]

1. d4 {[%emt 0:00:48]} d6 {[%emt 0:00:19]} 2. e3 {[%emt 0:00:36]} Nf6 {[%emt 0:00:44]} 3. Bd3 {[%emt 0:00:56]} c6 {[%emt 0:01:24]} 4. c3 {[%emt 0:00:22]} e5 {[%emt 0:01:11]} 5. Nd2 {[%emt 0:02:00]} Be7 {[%emt 0:03:27]} 6. Ngf3 {[%emt 0:02:50]} Bg4 {[%emt 0:03:32]} 7. h3 {[%emt 0:04:46]} Bxf3 {[%emt 0:02:13]} 8. Qxf3 {[%emt 0:01:33]} Nbd7 {[%emt 0:02:19]} 9. O-O {[%emt 0:02:45]} O-O {[%emt 0:01:43]} 10. e4 {[%emt 0:02:41]} exd4 {[%emt 0:08:09]} 11. cxd4 {[%emt 0:00:47]} h6 {[%emt 0:03:37]} 12. Nb3 {[%emt 0:08:06]} Nh7 {[%emt 0:10:19]} 13. Bf4 {[%emt 0:07:39]} Ng5 {[%emt 0:04:20]} 14. Qg3 {[%emt 0:03:08]} Nf6 {[%emt 0:08:46]} 15. h4 {[%emt 0:23:37]} Nh5 {[%emt 0:05:51]} 16. Qg4 {[%emt 0:06:12]} Nxf4 {[%emt 0:01:35]} 17. Qxf4 {[%emt 0:02:28]} Ne6 {[%emt 0:01:03]} 18. Qg4 {[%emt 0:02:25]} Bxh4 {[%emt 0:01:42]} 19. g3 {[%emt 0:02:51]} Bf6 {[%emt 0:03:26]} 20. d5 {[%emt 0:06:18]} cxd5 {[%emt 0:07:20]} 21. exd5 {[%emt 0:00:38]} Nc5 {[%emt 0:00:49]} 22. Nxc5 {[%emt 0:01:39]} dxc5 {[%emt 0:00:13]} 23. Qe4 {[%emt 0:02:17]} g6 {[%emt 0:00:17]} 24. Rab1 {[%emt 0:05:14]} Bd4 {[%emt 0:02:51]} 25. Kg2 {[%emt 0:00:50]} Re8 {[%emt 0:02:37]} 26. Qf4 {[%emt 0:01:00]} Qxd5+ {[%emt 0:00:59]} 27. f3 {[%emt 0:01:12]} Be3 {[%emt 0:01:56]} 28. Bc4 {[%emt 0:00:19]} Qd2+ {[%emt 0:00:15]} 29. Rf2 {[%emt 0:00:25]} Qxf2+ {[%emt 0:00:09]} 0-1

[Event "Faroese-ch Open 2025"]
[Site "Torshavn"]
[Date "2025.04.16"]
[Round "5.6"]
[White "Joensen, Sigurd"]
[Black "Al-Jay, Zaid"]
[Result "1/2-1/2"]
[Annotator "NA RC"]
[ECO "C02"]
[WhiteElo "1619"]
[BlackElo "1689"]
[PlyCount "149"]
[EventDate "2025.04.11"]
[EventType "swiss"]
[EventCountry "FAI"]
[SourceTitle "playchess.com"]
[Source "ChessBase"]
[SourceQuality "1"]
[TimeControl "40/5400+30:900+30"]

1. e4 {[%emt 0:01:00]} e6 {[%emt 0:01:21]} 2. Nf3 {[%emt 0:01:31]} d5 {[%emt 0:00:21]} 3. e5 {[%emt 0:01:21]} c5 {[%emt 0:00:22]} 4. c3 {[%emt 0:01:44]} Bd7 {[%emt 0:00:51]} 5. d4 {[%emt 0:00:26]} Nc6 {[%emt 0:00:24]} 6. Be2 {[%emt 0:02:47]} cxd4 {[%emt 0:02:11]} 7. cxd4 {[%emt 0:01:52]} Nge7 {[%emt 0:00:25]} 8. O-O {[%emt 0:01:01]} Nf5 {[%emt 0:00:14]} 9. Be3 {[%emt 0:00:30]} Qb6 {[%emt 0:01:05]} 10. b3 {[%emt 0:02:44]} Be7 {[%emt 0:00:30]} 11. a3 {[%emt 0:05:41]} O-O {[%emt 0:02:09]} 12. b4 {[%emt 0:02:14]} a6 {[%emt 0:02:18]} 13. Qd3 {[%emt 0:06:13]} Na7 {[%emt 0:01:34]} 14. Nc3 {[%emt 0:04:44]} Rac8 {[%emt 0:01:13]} 15. Rac1 {[%emt 0:09:23]} Rc7 {[%emt 0:01:28]} 16. g4 {[%emt 0:05:15]} Nxe3 {[%emt 0:08:59]} 17. Qxe3 {[%emt 0:03:34]} Rfc8 {[%emt 0:02:43]} 18. Nd2 {[%emt 0:06:35]} Bb5 {[%emt 0:05:39]} 19. Bxb5 {[%emt 0:04:30]} Nxb5 {[%emt 0:02:59]} 20. Ndb1 {[%emt 0:04:47]} Qxd4 {[%emt 0:04:35]} 21. Qxd4 {[%emt 0:07:21]} Nxd4 {[%emt 0:00:22]} 22. f4 {[%emt 0:00:23]} Nb5 {[%emt 0:08:43]} 23. Ne2 {[%emt 0:05:13]} Rxc1 {[%emt 0:01:44]} 24. Rxc1 {[%emt 0:00:30]} Rxc1+ {[%emt 0:00:18]} 25. Nxc1 {[%emt 0:00:02]} Kf8 {[%emt 0:03:36]} 26. Nb3 {[%emt 0:02:44]} b6 {[%emt 0:01:44]} 27. Kf1 {[%emt 0:01:47]} Ke8 {[%emt 0:00:21]} 28. Ke2 {[%emt 0:00:44]} Kd7 {[%emt 0:00:50]} 29. Kd3 {[%emt 0:01:11]} Kc6 {[%emt 0:01:00]} 30. a4 {[%emt 0:03:27]} Nc7 {[%emt 0:01:04]} 31. Nd4+ {[%emt 0:01:35]} Kd7 {[%emt 0:00:53]} 32. Kc3 {[%emt 0:02:25]} f6 {[%emt 0:06:12]} 33. Nd2 {[%emt 0:03:43]} b5 {[%emt 0:03:48]} 34. a5 {[%emt 0:00:48]} fxe5 {[%emt 0:03:45]} 35. fxe5 {[%emt 0:00:17]} Ne8 {[%emt 0:04:01]} 36. N2f3 {[%emt 0:01:28]} h6 {[%emt 0:00:34]} 37. Nc2 {[%emt 0:02:26]} g6 {[%emt 0:00:40]} 38. Ncd4 {[%emt 0:02:11]} Ng7 {[%emt 0:01:08]} 39. h3 {[%emt 0:00:48]} Bd8 {[%emt 0:01:15]} 40. Nb3 {[%emt 0:00:00]} Be7 {[%emt 0:00:00]} 41. Nbd4 {[%emt 0:03:44]} Ne8 {[%emt 0:02:50]} 42. Nb3 {[%emt 0:01:42]} Bf8 {[%emt 0:00:27]} 43. Nbd4 {[%emt 0:01:19]} Bg7 {[%emt 0:00:16]} 44. Kd3 {[%emt 0:02:37]} h5 {[%emt 0:02:01]} 45. Nb3 {[%emt 0:00:55]} Nc7 {[%emt 0:06:01]} 46. Nbd4 {[%emt 0:03:13]} Bh6 {[%emt 0:02:34]} 47. Nh4 {[%emt 0:02:45]} hxg4 {[%emt 0:03:52]} 48. hxg4 {[%emt 0:00:12]} Ke7 {[%emt 0:06:26]} 49. Nxg6+ {[%emt 0:00:49]} Kf7 {[%emt 0:00:16]} 50. Nh4 {[%emt 0:00:26]} Bf4 {[%emt 0:00:31]} 51. Nhf3 {[%emt 0:00:26]} Bh6 {[%emt 0:02:17]} 52. Nb3 {[%emt 0:01:14]} Bf8 {[%emt 0:00:50]} 53. Kc3 {[%emt 0:00:13]} d4+ {[%emt 0:02:05]} 54. Kxd4 {[%emt 0:02:38]} Bxb4 {[%emt 0:00:54]} 55. Ng5+ {[%emt 0:01:34]} Ke7 {[%emt 0:02:02]} 56. Ne4 {[%emt 0:01:08]} Ba3 {[%emt 0:05:31]} 57. Nec5 {[%emt 0:00:59]} Kf7 {[%emt 0:04:25]} 58. Ke4 {[%emt 0:00:19]} Kg6 {[%emt 0:00:57]} 59. Kf4 {[%emt 0:00:57]} Bb4 {[%emt 0:01:21]} 60. Nd3 {[%emt 0:00:03]} Nd5+ {[%emt 0:04:21]} 61. Kf3 {[%emt 0:00:02]} Kg5 {[%emt 0:00:55]} 62. Nxb4 {[%emt 0:00:20]} Nxb4 {[%emt 0:00:12]} 63. Nc5 {[%emt 0:00:23]} Nc6 {[%emt 0:00:54]} 64. Nxe6+ {[%emt 0:00:08]} Kg6 {[%emt 0:00:25]} 65. Nc5 {[%emt 0:00:27]} Nxe5+ {[%emt 0:00:41]} 66. Kf4 {[%emt 0:00:12]} Nc6 {[%emt 0:00:56]} 67. Nxa6 {[%emt 0:00:30]} Nxa5 {[%emt 0:00:07]} 68. Nb4 {[%emt 0:00:33]} Nb7 {[%emt 0:01:16]} 69. g5 {[%emt 0:00:44]} Nc5 {[%emt 0:00:22]} 70. Kg4 {[%emt 0:00:52]} Ne6 {[%emt 0:00:13]} 71. Kf3 {[%emt 0:01:00]} Kxg5 {[%emt 0:00:42]} 72. Ke4 {[%emt 0:00:14]} Kf6 {[%emt 0:00:13]} 73. Kd5 {[%emt 0:00:10]} Ke7 {[%emt 0:00:26]} 74. Nc2 {[%emt 0:00:26]} Kd7 {[%emt 0:00:15]} 75. Na3 {[%emt 0:00:44]} 1/2-1/2

[Event "Faroese-ch Open 2025"]
[Site "Torshavn"]
[Date "2025.04.17"]
[Round "6.1"]
[White "Morkore, Mortan"]
[Black "Kosini, Bogi a"]
[Result "0-1"]
[Annotator "NA RC"]
[ECO "C64"]
[WhiteElo "1681"]
[BlackElo "1654"]
[PlyCount "52"]
[EventDate "2025.04.11"]
[EventType "swiss"]
[EventCountry "FAI"]
[SourceTitle "playchess.com"]
[Source "ChessBase"]
[SourceQuality "1"]
[TimeControl "40/5400+30:900+30"]

1. e4 {[%emt 0:00:18]} e5 {[%emt 0:00:10]} 2. Nf3 {[%emt 0:00:14]} Nc6 {[%emt 0:00:10]} 3. Bb5 {[%emt 0:00:10]} Bc5 {[%emt 0:00:14]} 4. c3 {[%emt 0:00:22]} d6 {[%emt 0:00:55]} 5. d4 {[%emt 0:00:18]} exd4 {[%emt 0:00:22]} 6. cxd4 {[%emt 0:00:06]} Bb4+ {[%emt 0:00:18]} 7. Kf1 {[%emt 0:00:38]} Bd7 {[%emt 0:09:06]} 8. Qa4 {[%emt 0:01:51]} Rb8 {[%emt 0:06:01]} 9. d5 {[%emt 0:01:50]} Nge7 {[%emt 0:12:20]} 10. dxc6 {[%emt 0:01:35]} bxc6 {[%emt 0:00:21]} 11. Qxb4 {[%emt 0:05:10]} cxb5 {[%emt 0:01:09]} 12. Qd4 {[%emt 0:03:07]} O-O {[%emt 0:01:47]} 13. Bg5 {[%emt 0:02:20]} f6 {[%emt 0:01:14]} 14. Be3 {[%emt 0:01:40]} b4 {[%emt 0:07:24]} 15. Nbd2 {[%emt 0:03:11]} Bb5+ {[%emt 0:01:52]} 16. Kg1 {[%emt 0:01:21]} c5 {[%emt 0:00:46]} 17. a4 {[%emt 0:05:58]} cxd4 {[%emt 0:00:53]} 18. Nxd4 {[%emt 0:03:04]} Bd7 {[%emt 0:01:06]} 19. Nc4 {[%emt 0:02:41]} d5 {[%emt 0:04:13]} 20. Nd6 {[%emt 0:00:01]} Nc6 {[%emt 0:04:17]} 21. Rd1 {[%emt 0:03:08]} Nxd4 {[%emt 0:00:31]} 22. Rxd4 {[%emt 0:00:01]} Bxa4 {[%emt 0:01:03]} 23. Rxd5 {[%emt 0:00:09]} Bc6 {[%emt 0:01:11]} 24. Nf7 {[%emt 0:00:44]} Qc7 {[%emt 0:04:20]} 25. Nh6+ {[%emt 0:01:12]} gxh6 {[%emt 0:00:17]} 26. Bf4 {[%emt 0:00:03]} Qxf4 {[%emt 0:00:24]} 0-1

[Event "Faroese-ch Open 2025"]
[Site "Torshavn"]
[Date "2025.04.17"]
[Round "6.2"]
[White "Staksberg, Luca Eydun"]
[Black "Anthoniussen, Mannbjorn"]
[Result "0-1"]
[Annotator "NA RC"]
[ECO "A23"]
[WhiteElo "1692"]
[BlackElo "1689"]
[PlyCount "80"]
[EventDate "2025.04.11"]
[EventType "swiss"]
[EventCountry "FAI"]
[SourceTitle "playchess.com"]
[Source "ChessBase"]
[SourceQuality "1"]
[TimeControl "40/5400+30:900+30"]

1. c4 {[%emt 0:00:07]} e5 {[%emt 0:00:59]} 2. g3 {[%emt 0:01:46]} Bc5 {[%emt 0:04:34]} 3. Bg2 {[%emt 0:02:25]} Nf6 {[%emt 0:00:51]} 4. Nc3 {[%emt 0:02:27]} O-O {[%emt 0:02:36]} 5. e3 {[%emt 0:02:16]} c6 {[%emt 0:01:49]} 6. Nge2 {[%emt 0:06:42]} d6 {[%emt 0:04:53]} 7. O-O {[%emt 0:02:09]} Bg4 {[%emt 0:01:50]} 8. d3 {[%emt 0:08:51]} Nbd7 {[%emt 0:06:23]} 9. a3 {[%emt 0:05:08]} h6 {[%emt 0:06:50]} 10. b4 {[%emt 0:03:36]} Bb6 {[%emt 0:01:29]} 11. b5 {[%emt 0:05:26]} Rc8 {[%emt 0:05:43]} 12. Qb3 {[%emt 0:07:35]} Nc5 {[%emt 0:05:41]} 13. Qc2 {[%emt 0:02:26]} Qd7 {[%emt 0:07:34]} 14. bxc6 {[%emt 0:01:35]} bxc6 {[%emt 0:01:33]} 15. e4 {[%emt 0:01:33]} Bh3 {[%emt 0:04:00]} 16. Kh1 {[%emt 0:06:51]} Bxg2+ {[%emt 0:02:39]} 17. Kxg2 {[%emt 0:00:02]} Qg4 {[%emt 0:04:03]} 18. f4 {[%emt 0:06:18]} Ne6 {[%emt 0:05:15]} 19. Nd1 {[%emt 0:08:59]} exf4 {[%emt 0:17:39]} 20. Bxf4 {[%emt 0:04:13]} Nxf4+ {[%emt 0:01:00]} 21. Rxf4 {[%emt 0:01:39]} Qg5 {[%emt 0:01:15]} 22. Rf5 {[%emt 0:01:16]} Qg6 {[%emt 0:02:12]} 23. h3 {[%emt 0:05:58]} d5 {[%emt 0:02:49]} 24. Ndc3 {[%emt 0:04:44]} dxe4 {[%emt 0:01:49]} 25. dxe4 {[%emt 0:00:36]} Rfe8 {[%emt 0:00:29]} 26. Raf1 {[%emt 0:01:29]} Re7 {[%emt 0:00:36]} 27. g4 {[%emt 0:02:58]} Rce8 {[%emt 0:03:12]} 28. Ng3 {[%emt 0:02:07]} Bc7 {[%emt 0:01:09]} 29. Re1 {[%emt 0:01:15]} h5 {[%emt 0:01:01]} 30. Nxh5 {[%emt 0:01:31]} Nxh5 {[%emt 0:00:25]} 31. Rxh5 {[%emt 0:00:27]} Be5 {[%emt 0:01:50]} 32. Na4 {[%emt 0:01:25]} Qd6 {[%emt 0:00:16]} 33. c5 {[%emt 0:00:30]} Qd4 {[%emt 0:00:35]} 34. Rd1 {[%emt 0:00:25]} Qe3 {[%emt 0:00:07]} 35. Qd3 {[%emt 0:00:37]} Qf4 {[%emt 0:00:15]} 36. Rf5 {[%emt 0:00:27]} Qh2+ {[%emt 0:00:33]} 37. Kf1 {[%emt 0:00:02]} Bg3 {[%emt 0:00:58]} 38. Rd2 {[%emt 0:01:06]} Qxh3+ {[%emt 0:00:23]} 39. Ke2 {[%emt 0:00:31]} Rxe4+ {[%emt 0:00:34]} 40. Kd1 {[%emt 0:00:00]} Qxg4+ {[%emt 0:00:00]} 0-1

[Event "Faroese-ch Open 2025"]
[Site "Torshavn"]
[Date "2025.04.17"]
[Round "6.3"]
[White "Simonsen, Johannes"]
[Black "Logv, Hanus a"]
[Result "1/2-1/2"]
[Annotator "NA RC"]
[ECO "C28"]
[WhiteElo "1608"]
[BlackElo "1656"]
[PlyCount "89"]
[EventDate "2025.04.11"]
[EventType "swiss"]
[EventCountry "FAI"]
[SourceTitle "playchess.com"]
[Source "ChessBase"]
[SourceQuality "1"]
[TimeControl "40/5400+30:900+30"]

1. e4 {[%emt 0:00:20]} e5 {[%emt 0:00:02]} 2. Nc3 {[%emt 0:00:11]} Nc6 {[%emt 0:00:06]} 3. Bc4 {[%emt 0:00:10]} Nf6 {[%emt 0:00:07]} 4. d3 {[%emt 0:00:22]} Be7 {[%emt 0:01:21]} 5. f4 {[%emt 0:00:09]} exf4 {[%emt 0:04:03]} 6. Nf3 {[%emt 0:00:27]} d6 {[%emt 0:03:50]} 7. Bxf4 {[%emt 0:01:30]} Be6 {[%emt 0:05:33]} 8. Bxe6 {[%emt 0:03:41]} fxe6 {[%emt 0:00:05]} 9. O-O {[%emt 0:00:36]} e5 {[%emt 0:02:19]} 10. Be3 {[%emt 0:06:17]} O-O {[%emt 0:04:44]} 11. Nh4 {[%emt 0:04:05]} Nxe4 {[%emt 0:02:18]} 12. Rxf8+ {[%emt 0:02:15]} Qxf8 {[%emt 0:01:31]} 13. Nxe4 {[%emt 0:00:37]} Bxh4 {[%emt 0:00:12]} 14. Qg4 {[%emt 0:00:28]} Qe7 {[%emt 0:05:15]} 15. g3 {[%emt 0:05:34]} Bf6 {[%emt 0:00:15]} 16. Rf1 {[%emt 0:00:32]} Rf8 {[%emt 0:02:10]} 17. Nxf6+ {[%emt 0:03:22]} Rxf6 {[%emt 0:00:27]} 18. Rxf6 {[%emt 0:00:13]} Qxf6 {[%emt 0:00:11]} 19. Qc8+ {[%emt 0:03:29]} Kf7 {[%emt 0:20:40]} 20. Qxb7 {[%emt 0:04:16]} Qf3 {[%emt 0:09:01]} 21. Qxc7+ {[%emt 0:07:17]} Ke6 {[%emt 0:00:59]} 22. Qc8+ {[%emt 0:03:38]} Kf7 {[%emt 0:08:01]} 23. Qd7+ {[%emt 0:00:48]} Ne7 {[%emt 0:01:38]} 24. Bxa7 {[%emt 0:15:02]} Qd1+ {[%emt 0:01:25]} 25. Kg2 {[%emt 0:02:10]} Qxc2+ {[%emt 0:00:16]} 26. Bf2 {[%emt 0:00:29]} Qxd3 {[%emt 0:01:26]} 27. Qb7 {[%emt 0:04:38]} e4 {[%emt 0:02:38]} 28. Qb3+ {[%emt 0:05:11]} Qxb3 {[%emt 0:00:34]} 29. axb3 {[%emt 0:00:11]} Nc6 {[%emt 0:02:00]} 30. Be1 {[%emt 0:00:54]} d5 {[%emt 0:05:23]} 31. b4 {[%emt 0:00:26]} Na7 {[%emt 0:01:03]} 32. Kf2 {[%emt 0:01:22]} Ke6 {[%emt 0:01:56]} 33. Bc3 {[%emt 0:00:39]} g6 {[%emt 0:00:45]} 34. g4 {[%emt 0:01:43]} Nb5 {[%emt 0:01:30]} 35. Ke3 {[%emt 0:01:32]} h5 {[%emt 0:08:15]} 36. h3 {[%emt 0:00:26]} Kd6 {[%emt 0:02:05]} 37. Bg7 {[%emt 0:01:54]} Ke6 {[%emt 0:01:17]} 38. Kf4 {[%emt 0:02:10]} hxg4 {[%emt 0:00:45]} 39. hxg4 {[%emt 0:00:41]} Nd6 {[%emt 0:02:19]} 40. b3 {[%emt 0:00:00]} Nb5 {[%emt 0:00:00]} 41. Ke3 {[%emt 0:03:17]} Kf7 {[%emt 0:03:53]} 42. Bb2 {[%emt 0:01:53]} Ke6 {[%emt 0:01:07]} 43. Kf4 {[%emt 0:00:42]} Kd6 {[%emt 0:01:53]} 44. Be5+ {[%emt 0:04:15]} Ke6 {[%emt 0:00:44]} 45. Bb2 {[%emt 0:00:13]} 1/2-1/2

[Event "Faroese-ch Open 2025"]
[Site "Torshavn"]
[Date "2025.04.17"]
[Round "6.6"]
[White "Joensen, Sigurd"]
[Black "Rasmussen, Gunnleif"]
[Result "1/2-1/2"]
[Annotator "NA RC"]
[ECO "A02"]
[WhiteElo "1619"]
[BlackElo "1489"]
[PlyCount "48"]
[EventDate "2025.04.11"]
[EventType "swiss"]
[EventCountry "FAI"]
[SourceTitle "playchess.com"]
[Source "ChessBase"]
[SourceQuality "1"]
[TimeControl "40/5400+30:900+30"]

1. f4 {[%emt 0:00:15]} e5 {[%emt 0:00:07]} 2. fxe5 {[%emt 0:00:26]} d6 {[%emt 0:00:08]} 3. Nf3 {[%emt 0:01:10]} Nc6 {[%emt 0:00:14]} 4. d3 {[%emt 0:01:08]} Nxe5 {[%emt 0:02:29]} 5. Nxe5 {[%emt 0:04:46]} dxe5 {[%emt 0:00:17]} 6. e4 {[%emt 0:00:30]} Nf6 {[%emt 0:00:50]} 7. Be2 {[%emt 0:05:26]} Bc5 {[%emt 0:05:58]} 8. Bg5 Qd4 {[%emt 0:00:30]} 9. c3 {[%emt 0:18:05]} Qf2+ {[%emt 0:06:04]} 10. Kd2 Nxe4+ {[%emt 0:14:32]} 11. dxe4 {[%emt 0:05:28]} f6 {[%emt 0:04:39]} 12. Rf1 {[%emt 0:01:07]} Qxg2 {[%emt 0:00:40]} 13. Be3 {[%emt 0:01:08]} Bxe3+ {[%emt 0:02:18]} 14. Kxe3 {[%emt 0:01:23]} Qg5+ {[%emt 0:00:59]} 15. Kd3 {[%emt 0:02:12]} Bh3 {[%emt 0:02:38]} 16. Qa4+ {[%emt 0:05:02]} c6 {[%emt 0:00:35]} 17. Rd1 {[%emt 0:11:38]} O-O-O+ {[%emt 0:16:19]} 18. Kc2 {[%emt 0:01:13]} Rxd1 {[%emt 0:02:38]} 19. Bxd1 {[%emt 0:06:42]} Rd8 {[%emt 0:04:03]} 20. Qxa7 {[%emt 0:08:41]} Qg2+ {[%emt 0:04:14]} 21. Kc1 {[%emt 0:06:23]} Qf1 {[%emt 0:11:45]} 22. Nd2 {[%emt 0:01:40]} Qe1 {[%emt 0:02:49]} 23. Qa8+ {[%emt 0:01:21]} Kc7 {[%emt 0:00:32]} 24. Qa5+ {[%emt 0:00:36]} Kc8 {[%emt 0:06:08]} 1/2-1/2

[Event "Faroese-ch Open 2025"]
[Site "Torshavn"]
[Date "2025.04.18"]
[Round "7.1"]
[White "Al-Jay, Zaid"]
[Black "Kosini, Bogi a"]
[Result "1-0"]
[Annotator "NA"]
[ECO "C45"]
[WhiteElo "1689"]
[BlackElo "1654"]
[PlyCount "101"]
[EventDate "2025.04.11"]
[EventType "swiss"]
[EventCountry "FAI"]
[SourceTitle "playchess.com"]
[Source "ChessBase"]
[SourceQuality "1"]
[TimeControl "40/5400+30:900+30"]

1. e4 {[%emt 0:00:06]} e5 {[%emt 0:00:06]} 2. Nf3 {[%emt 0:00:14]} Nc6 {[%emt 0:00:15]} 3. d4 {[%emt 0:00:11]} exd4 {[%emt 0:00:23]} 4. Nxd4 {[%emt 0:00:09]} Bc5 {[%emt 0:00:28]} 5. Nb3 {[%emt 0:00:13]} Bb6 {[%emt 0:00:14]} 6. Nc3 {[%emt 0:00:10]} d6 {[%emt 0:00:20]} 7. Qe2 {[%emt 0:00:16]} Nf6 {[%emt 0:01:23]} 8. Be3 {[%emt 0:00:15]} Bxe3 {[%emt 0:01:39]} 9. Qxe3 {[%emt 0:00:15]} O-O {[%emt 0:00:14]} 10. O-O-O {[%emt 0:00:09]} Re8 {[%emt 0:07:42]} 11. f3 {[%emt 0:00:32]} Be6 {[%emt 0:04:32]} 12. g4 {[%emt 0:01:28]} Qe7 {[%emt 0:15:12]} 13. g5 {[%emt 0:13:31]} Nd7 {[%emt 0:05:41]} 14. Be2 {[%emt 0:04:20]} f5 {[%emt 0:04:38]} 15. gxf6 {[%emt 0:09:39]} Qxf6 {[%emt 0:00:40]} 16. Rhg1 {[%emt 0:03:39]} Nde5 {[%emt 0:06:49]} 17. Rg3 {[%emt 0:21:55]} Rf8 {[%emt 0:17:07]} 18. Rdg1 {[%emt 0:01:30]} g6 {[%emt 0:01:40]} 19. Kb1 {[%emt 0:02:34]} Qf4 {[%emt 0:01:40]} 20. Qf2 {[%emt 0:07:53]} Ng4 {[%emt 0:03:11]} 21. Qg2 {[%emt 0:10:16]} Nge5 {[%emt 0:08:14]} 22. h4 {[%emt 0:11:45]} Kf7 {[%emt 0:05:47]} 23. h5 {[%emt 0:01:28]} Rg8 {[%emt 0:01:30]} 24. Qh2 {[%emt 0:01:43]} g5 {[%emt 0:02:19]} 25. h6 {[%emt 0:00:44]} Qh4 {[%emt 0:03:02]} 26. Qg2 {[%emt 0:01:23]} Qxh6 {[%emt 0:01:12]} 27. f4 {[%emt 0:01:30]} Nd7 {[%emt 0:01:30]} 28. f5 {[%emt 0:01:53]} Bxb3 {[%emt 0:00:20]} 29. axb3 {[%emt 0:00:30]} Nce5 {[%emt 0:01:09]} 30. Nb5 {[%emt 0:00:51]} Rac8 {[%emt 0:03:35]} 31. Nd4 {[%emt 0:01:06]} Nf8 {[%emt 0:01:26]} 32. Nf3 {[%emt 0:01:07]} Nxf3 {[%emt 0:00:23]} 33. Bc4+ {[%emt 0:00:50]} Ke7 {[%emt 0:00:42]} 34. Qxf3 {[%emt 0:00:30]} Rg7 {[%emt 0:00:14]} 35. e5 {[%emt 0:02:08]} dxe5 {[%emt 0:00:41]} 36. Qxb7 {[%emt 0:00:11]} Rd8 {[%emt 0:01:08]} 37. Qxc7+ {[%emt 0:00:19]} Nd7 {[%emt 0:00:20]} 38. Re3 {[%emt 0:01:14]} Qf6 {[%emt 0:00:39]} 39. Rge1 {[%emt 0:00:15]} Kf8 {[%emt 0:00:28]} 40. Qxa7 {[%emt 0:00:00]} Nb6 {[%emt 0:00:00]} 41. Qa3+ {[%emt 0:01:54]} Re7 {[%emt 0:01:30]} 42. Rxe5 {[%emt 0:08:28]} Rd1+ {[%emt 0:01:44]} 43. Rxd1 {[%emt 0:01:02]} Qxe5 {[%emt 0:00:21]} 44. Rd8+ {[%emt 0:00:54]} Kg7 {[%emt 0:00:20]} 45. Be6 {[%emt 0:01:01]} Qc7 {[%emt 0:05:43]} 46. Rg8+ {[%emt 0:02:20]} Kf6 {[%emt 0:00:34]} 47. Qb4 {[%emt 0:01:06]} Nd7 {[%emt 0:02:17]} 48. Rxg5 {[%emt 0:01:30]} Nc5 {[%emt 0:03:50]} 49. Qh4 {[%emt 0:01:06]} Nxe6 {[%emt 0:00:37]} 50. Qh6+ {[%emt 0:01:22]} Kf7 {[%emt 0:02:09]} 51. fxe6+ {[%emt 0:02:17]} 1-0

[Event "Faroese-ch Open 2025"]
[Site "Torshavn"]
[Date "2025.04.18"]
[Round "7.2"]
[White "Anthoniussen, Mannbjorn"]
[Black "Logv, Hanus a"]
[Result "0-1"]
[Annotator "NA"]
[ECO "C78"]
[WhiteElo "1689"]
[BlackElo "1656"]
[PlyCount "34"]
[EventDate "2025.04.11"]
[EventType "swiss"]
[EventCountry "FAI"]
[SourceTitle "playchess.com"]
[Source "ChessBase"]
[SourceQuality "1"]
[TimeControl "40/5400+30:900+30"]

1. e4 {[%emt 0:00:03]} e5 {[%emt 0:00:02]} 2. Nf3 {[%emt 0:00:55]} Nc6 {[%emt 0:00:02]} 3. Bb5 {[%emt 0:00:23]} a6 {[%emt 0:00:06]} 4. Ba4 {[%emt 0:00:28]} Nf6 {[%emt 0:00:07]} 5. O-O {[%emt 0:01:13]} Bc5 {[%emt 0:01:51]} 6. c3 {[%emt 0:02:32]} b5 {[%emt 0:01:10]} 7. Bb3 {[%emt 0:01:55]} d6 {[%emt 0:16:14]} 8. d4 {[%emt 0:05:24]} exd4 {[%emt 0:03:16]} 9. cxd4 {[%emt 0:01:03]} Bb6 {[%emt 0:00:44]} 10. Re1 {[%emt 0:04:30]} O-O {[%emt 0:08:01]} 11. Bg5 {[%emt 0:09:35]} Re8 {[%emt 0:08:12]} 12. Bd5 {[%emt 0:13:41]} Bb7 {[%emt 0:00:55]} 13. e5 {[%emt 0:06:32]} dxe5 {[%emt 0:01:26]} 14. dxe5 {[%emt 0:01:04]} Qxd5 {[%emt 0:00:25]} 15. exf6 {[%emt 0:02:24]} Rxe1+ {[%emt 0:04:43]} 16. Qxe1 {[%emt 0:00:39]} Nd4 {[%emt 0:01:17]} 17. Qd1 {[%emt 0:05:43]} Nxf3+ {[%emt 0:00:17]} 0-1